lending/lending_fUSD_20240610
["ID","MTS","AMOUNT","RATE_DAILY","PERIOD"]
[328913118,1717979432420,-250.0,0.00024025,2]
[328913119,1717979432431,-302.44,0.0002426,2]
[328913120,1717979432441,-176.92,0.00024378,2]
[328913121,1717979432451,-183.89,0.00024384,2]
[328913122,1717979432461,-2029.4,0.00024399,2]
[328913123,1717979432471,-286.0,0.00024411,2]
[328913124,1717979432481,-250.0,0.00024429,2]
[328913125,1717979432491,-154.2,0.00024521,2]
[328913126,1717979432501,-154.2,0.00024552,2]
[328913127,1717979432511,-500.0,0.00024554,2]
[328913128,1717979432521,-154.2,0.00024583,2]
[328913129,1717979432532,-154.2,0.00024613,2]
[328913130,1717979432542,-154.2,0.00024644,2]
[328913131,1717979432552,-155.6,0.00024722,2]
[328913132,1717979432562,-190.36,0.00025138,2]
[328913133,1717979432572,-152.0,0.00025381,5]
[328913134,1717979432582,-158.02969383,0.00025381,5]
[328913135,1717979432592,-166.26,0.00025582,2]
[328913136,1717979432602,-198.89,0.00025835,2]
[328913137,1717979432612,-257.86,0.00025944,2]
[328913138,1717979432622,-1678.0,0.00026,3]
[328913139,1717979432633,-150.58931768,0.00026071,2]
[328913140,1717979432642,-151.18669678,0.00026103,2]
[328913141,1717979432652,-1138.65525389,0.00026103,2]
[328913142,1717979432663,-151.18669678,0.00026134,2]
[328913143,1717979432674,-1138.65525389,0.00026146,2]
[328913144,1717979432684,-150.58931768,0.00026159,2]
[328913145,1717979432695,-153.90788871,0.00026162,2]
[328913146,1717979432705,-153.90788871,0.00026174,2]
[328913147,1717979432715,-151.18669678,0.00026181,2]
[328913148,1717979432725,-150.58931768,0.00026239,2]
[328913149,1717979432736,-154.45886144,0.00026264,2]
[328913150,1717979432746,-152.59184142,0.00026296,2]
[328913151,1717979432756,-150.58931768,0.00026407,2]
[328913152,1717979432766,-155.29733055,0.00026408,2]
[328913153,1717979432777,-150.58931768,0.0002643,2]
[328913154,1717979432787,-152.33140726,0.00026431,2]
[328913155,1717979432798,-4444.03789171,0.00026496,2]
[328913156,1717979432808,-1138.65525389,0.00026497,2]
[328913157,1717979432818,-152.33140726,0.00026505,2]
[328913158,1717979432828,-154.45886144,0.0002651,2]
[328913159,1717979432838,-155.29733055,0.00026524,2]
[328913160,1717979432848,-302.44,0.00026524,2]
[328913161,1717979432858,-151.18669678,0.00026571,2]
[328913162,1717979432868,-154.6686237,0.00026575,2]
[328913163,1717979432878,-152.33140726,0.00026578,2]
[328913164,1717979432888,-151.18669678,0.00026622,2]
[328913165,1717979432900,-152.59184142,0.00026644,2]
[328913166,1717979432910,-161.725471,0.00026665,2]
[328913167,1717979432921,-153.90788871,0.0002674,2]
[328913168,1717979432931,-151.18669678,0.00026801,2]
[328913169,1717979432945,-152.33140726,0.00026807,2]
[328913170,1717979432955,-150.0,0.00026844,2]
[328913171,1717979432965,-150.58931768,0.0002687,2]
[328913172,1717979432975,-154.6686237,0.00026914,2]
[328913173,1717979432987,-1138.65525389,0.00026953,2]
[328913174,1717979432997,-154.6686237,0.00026961,2]
[328913175,1717979433007,-200.7,0.00026996,2]
[328913176,1717979433019,-752.30654583,0.00026998,2]
[328913177,1717979433028,-4816.16,0.00027001,2]
[328913178,1717979433039,-150.58931768,0.00027007,2]
[328913179,1717979433049,-1138.65525389,0.00027021,2]
[328913180,1717979433060,-154.6686237,0.00027023,2]
[328913181,1717979433070,-1138.65525389,0.00027028,2]
[328913182,1717979433081,-151.18669678,0.00027049,2]
[328913183,1717979433091,-154.6686237,0.00027091,2]
[328913184,1717979433100,-154.6686237,0.00027135,2]
[328913185,1717979433110,-168.64718081,0.00027136,2]
[328913186,1717979433120,-1138.65525389,0.00027209,2]
[328913187,1717979433130,-1138.65525389,0.00027216,2]
[328913188,1717979433140,-786.24788383,0.00027268,2]
[328913189,1717979433150,-1138.65525389,0.0002727,2]
[328913190,1717979433159,-152.45521484,0.00027274,2]
[328913191,1717979433171,-1138.65525389,0.00027316,2]
[328913193,1717979433180,-1138.65525389,0.00027347,2]
[328913195,1717979433190,-150.58931768,0.00027389,2]
[328913197,1717979433200,-150.58931768,0.00027405,2]
[328913199,1717979433210,-158.03040467,0.00027425,2]
[328913201,1717979433220,-179.92,0.00027507,10]
[328913203,1717979433230,-152.59184142,0.00027508,2]
[328913205,1717979433240,-215.9,0.00027517,10]
[328913206,1717979433249,-152.45521484,0.00027527,2]
[328913207,1717979433259,-154.6686237,0.00027543,2]
[328913208,1717979433269,-259.08,0.00027622,10]
[328913209,1717979433279,-310.9,0.00027632,10]
[328913210,1717979433289,-1138.65525389,0.00027642,2]
[328913211,1717979433299,-154.6686237,0.0002766,2]
[328913212,1717979433309,-1138.65525389,0.00027679,2]
[328913213,1717979433319,-150.58931768,0.00027693,2]
[328913214,1717979433329,-154.6686237,0.00027704,2]
[328913216,1717979433339,-152.59184146,0.00027722,2]
[328913218,1717979433349,-1138.65525389,0.00027729,2]
[328913220,1717979433358,-152.45521484,0.00027732,2]
[328913222,1717979433368,-1138.65525389,0.00027754,2]
[328913224,1717979433378,-168.64718081,0.00027759,2]
[328913226,1717979433388,-155.29733055,0.00027784,2]
[328913227,1717979433398,-1138.65525389,0.00027817,2]
[328913229,1717979433408,-150.58931768,0.0002783,2]
[328913231,1717979433419,-1138.65525389,0.00027879,2]
[328913233,1717979433429,-1138.65525389,0.00027881,2]
[328913234,1717979433439,-152.45521484,0.00027926,2]
[328913235,1717979433449,-151.18669678,0.00027928,2]
[328913236,1717979433459,-1138.65525389,0.00027954,2]
[328913237,1717979433470,-1138.65525389,0.00027966,2]
[328913238,1717979433481,-224.83196172,0.00028,2]
[328913239,1717979433491,-568.596597,0.00028,2]
[328913240,1717979433501,-226.58078525,0.00028,2]
[328913241,1717979433512,-1000.0,0.00028011,2]
[328913242,1717979433522,-154.6686237,0.00028042,2]
[328913243,1717979433532,-151.18669678,0.00028052,2]
[328913244,1717979433543,-151.18669678,0.00028054,2]
[328913245,1717979433553,-150.58931768,0.00028059,2]
[328913246,1717979433563,-150.58931768,0.0002807,2]
[328913247,1717979433573,-150.58931768,0.00028117,2]
[328913248,1717979433584,-151.18669678,0.00028167,2]
[328913249,1717979433595,-150.58931768,0.00028245,2]
[328913250,1717979433606,-151.18669678,0.00028264,2]
[328913251,1717979433616,-154.6686237,0.00028264,2]
[328913252,1717979433625,-712.71753522,0.00028276,2]
[328913253,1717979433756,-287.28246478,0.00028276,2]
[328913254,1717979433766,-155.29733055,0.00028287,2]
[328913255,1717979433776,-1138.65525389,0.0002837,2]
[328913256,1717979433786,-168.64718081,0.00028374,2]
[328913257,1717979433796,-150.58931768,0.00028433,2]
[328913258,1717979433806,-16.33084172,0.00028467,2]
[328913259,1717979433818,-137.57704703,0.00028467,2]
[328913260,1717979433828,-152.45521484,0.00028482,2]
[328913261,1717979433838,-150.58931768,0.00028483,2]
[328913262,1717979433848,-151.18669678,0.00028494,2]
[328913263,1717979433858,-586.65124123,0.00028498,2]
[328913264,1717979433879,-558.4198447,0.00028498,2]
[328913265,1717979433890,-300.0,0.000285,2]
[328913266,1717979433900,-168.64718081,0.00028519,2]
[328913267,1717979433910,-1138.65525389,0.0002857,2]
[328913268,1717979433920,-150.58931768,0.0002859,2]
[328913269,1717979433930,-154.6686237,0.00028612,2]
[328913270,1717979433943,-166.66666666,0.00028642,2]
[328913271,1717979433953,-152.33140726,0.00028652,2]
[328913272,1717979433963,-150.58931768,0.00028662,2]
[328913273,1717979433974,-150.54755583,0.00028678,2]
[328913274,1717979433984,-151.18669678,0.000287,2]
[328913275,1717979433993,-151.16,0.00028724,30]
[328913276,1717979434004,-150.58931768,0.00028749,2]
[328913277,1717979434015,-151.18669678,0.00028761,2]
[328913278,1717979434024,-302.44,0.00028788,2]
[328913279,1717979434034,-176.69184186,0.00028798,2]
[328913280,1717979434044,-168.64718081,0.00028865,2]
[328913281,1717979434054,-400.0,0.000289,10]
[328913282,1717979434064,-152.33140726,0.00028938,2]
[328913283,1717979434074,-154.6686237,0.0002895,2]
[328913284,1717979434083,-1000.0,0.0002897,2]
[328913285,1717979434094,-241.1796,0.0002897,2]
[328913286,1717979434105,-150.58931768,0.00028976,2]
[328913287,1717979434115,-168.64718084,0.00028989,2]
[328913288,1717979434125,-1138.65525389,0.00028997,2]
[328913289,1717979434135,-1138.65525389,0.00028998,2]
[328913290,1717979434145,-300.0,0.00029,2]
[328913291,1717979434155,-800.0,0.00029,10]
[328913292,1717979434167,-305.14334765,0.00029041,4]
[328913293,1717979434176,-154.6686237,0.00029041,2]
[328913294,1717979434187,-50000.0,0.0002907,2]
[328913295,1717979434196,-218.6304,0.00029091,2]
[328913296,1717979434206,-1200.0,0.000291,10]
[328913297,1717979434216,-1009.8,0.000291,2]
[328913298,1717979434225,-301.8,0.000291,2]
[328913299,1717979434235,-1138.65525389,0.00029104,2]
[328913300,1717979434245,-169.1813528,0.00029126,2]
[328913301,1717979434255,-152.33140726,0.00029157,2]
[328913302,1717979434264,-161.725471,0.00029181,2]
[328913303,1717979434274,-151.18669678,0.00029187,2]
[328913304,1717979434284,-1700.0,0.000292,10]
[328913305,1717979434294,-2100.0,0.000293,10]
[328913306,1717979434304,-150.58931768,0.00029309,2]
[328913307,1717979434314,-153.16583406,0.00029345,2]
[328913308,1717979434323,-152.45521484,0.0002937,2]
[328913309,1717979434333,-2100.0,0.00029382,2]
[328913310,1717979434343,-400.0,0.000294,10]
[328913311,1717979434352,-150.58931768,0.00029406,2]
[328913312,1717979434363,-225.0,0.0002944,5]
[328913313,1717979434372,-150.58931768,0.00029452,2]
[328913314,1717979434382,-152.45521484,0.00029466,2]
[328913315,1717979434392,-150.58931768,0.00029477,2]
[328913316,1717979434401,-226.78247863,0.000295,3]
[328913317,1717979434411,-300.0,0.000295,2]
[328913318,1717979434422,-400.0,0.000295,10]
[328913319,1717979434432,-1138.65525389,0.00029556,2]
[328913320,1717979434442,-400.0,0.000296,10]
[328913321,1717979434453,-152.33140726,0.00029684,2]
[328913322,1717979434462,-235.24928445,0.00029698,2]
[328913323,1717979434472,-999.999495,0.00029699,4]
[328913324,1717979434483,-11664.1888965,0.000297,2]
[328913325,1717979434494,-400.0,0.000297,10]
[328913326,1717979434504,-1000.0,0.000297,2]
[328913327,1717979434514,-12998.5539,0.00029702,2]
[328913328,1717979434524,-873.0,0.00029741,2]
[328913329,1717979434534,-1138.65525389,0.0002975,2]
[328913330,1717979434544,-151.18669678,0.00029754,2]
[328913331,1717979434554,-150.58931768,0.00029756,2]
[328913332,1717979434564,-500.0,0.0002976,2]
[328913333,1717979434574,-200.0,0.0002976,2]
[328913334,1717979434584,-150.58931768,0.00029778,2]
[328913335,1717979434594,-150.58931768,0.00029791,2]
[328913336,1717979434604,-4538.17,0.000298,3]
[328913337,1717979434614,-4538.17,0.000298,3]
[328913338,1717979434624,-4538.17,0.000298,3]
[328913339,1717979434640,-4538.17,0.000298,3]
[328913340,1717979434650,-4538.17,0.000298,3]
[328913341,1717979434659,-1715.25213981,0.000298,3]
[328913342,1717979434925,-151.43,0.00027397,2]
[328913343,1717979434935,-2822.91786019,0.000298,3]
[328913344,1717979434950,-4538.17,0.000298,3]
[328913345,1717979434961,-4538.17,0.000298,3]
[328913346,1717979434971,-4538.17,0.000298,3]
[328913347,1717979434981,-4538.17,0.000298,3]
[328913348,1717979434992,-4538.17,0.000298,3]
[328913349,1717979435002,-4538.17,0.000298,3]
[328913350,1717979435013,-4538.17,0.000298,3]
[328913351,1717979435024,-4538.17,0.000298,3]
[328913352,1717979435035,-4538.17,0.000298,3]
[328913353,1717979435046,-4538.17,0.000298,3]
[328913354,1717979435056,-4538.17,0.000298,3]
[328913355,1717979435067,-4538.17,0.000298,3]
[328913356,1717979435077,-4538.17,0.000298,3]
[328913357,1717979435086,-4538.17,0.000298,3]
[328913358,1717979435097,-759.0,0.000298,10]
[328913359,1717979435107,-455.57295748,0.000298,2]
[328913360,1717979435117,-500.0,0.00029804,2]
[328913361,1717979435127,-500.0,0.00029804,2]
[328913362,1717979435137,-500.0,0.00029804,2]
[328913363,1717979435147,-500.0,0.00029804,2]
[328913364,1717979435157,-500.0,0.00029804,2]
[328913365,1717979435166,-500.0,0.00029804,2]
[328913366,1717979435176,-155.0,0.00029808,2]
[328913367,1717979435186,-1138.65525389,0.00029809,2]
[328913368,1717979435195,-150.58931768,0.00029824,2]
[328913369,1717979435205,-152.45521484,0.00029829,2]
[328913370,1717979435215,-154.6686237,0.0002986,2]
[328913371,1717979435225,-154.66862385,0.00029882,2]
[328913372,1717979435235,-150.58931774,0.00029896,2]
[328913373,1717979435245,-500.0,0.00029897,4]
[328913374,1717979435255,-500.0,0.00029897,4]
[328913375,1717979435266,-372.54398266,0.00029898,2]
[328913376,1717979435276,-13430.783,0.00029898,2]
[328913377,1717979435286,-20048.8722,0.00029898,2]
[328913378,1717979435296,-87912.12,0.00029898,2]
[328913379,1717979435306,-1000.0,0.00029898,2]
[328913380,1717979435317,-500.0,0.00029899,4]
[328913381,1717979435327,-500.0,0.00029899,4]
[328913382,1717979435337,-467.38,0.00029899,4]
[328913383,1717979435348,-500.0,0.00029899,4]
[328913384,1717979435357,-7500.0,0.000299,2]
[328913385,1717979435367,-5209.27222853,0.000299,2]
[328913386,1717979435384,-2536.29500803,0.000299,2]
[328913387,1717979435405,-151.43,0.0002968,2]
[328913388,1717979435416,-2254.43276344,0.000299,2]
[328913389,1717979435426,-7605.77833351,0.000299,2]
[328913390,1717979435455,-500.0,0.000299,2]
[328913391,1717979435466,-1133.16129937,0.000299,2]
[328913394,1717979438360,-899.62,0.0002979,10]
[328913395,1717979438370,-223.06626878,0.00029798,2]
[328913396,1717979438380,-1657.74373122,0.000298,2]
[328913397,1717979438396,-12.25626878,0.000298,2]
[328913398,1717979438406,-443.3166887,0.000299,2]
[328913403,1717979440983,-999.99174,0.00028989,2]
[328913404,1717979441104,-2e-08,0.00028989,2]
[328913405,1717979441181,2440.2468,0.000139,2]
[328913416,1717979446601,-0.04306253,0.00022499,2]
[328913417,1717979446679,-226.63144744,0.00022499,2]
[328913418,1717979446689,-224.83196172,0.00028,2]
[328913419,1717979446699,-0.00825998,0.00028989,2]
[328913420,1717979446709,-200.73,0.00029785,2]
[328913421,1717979446719,-223.06626875,0.00029813,2]
[328913422,1717979446729,-1714.70557299,0.000299,2]
[328913423,1717979447229,-173.03,0.0002989,10]
[328913424,1717979447239,-8643.41335247,0.000299,2]
[328913427,1717979489815,5582.53863772,0.00017259,2]
[328913428,1717979604407,-999.99174,0.00017259,2]
[328913429,1717979644870,750.0,0.000118,2]
[328913430,1717979651698,2115.76184575,0.00011,2]
[328913431,1717979702990,345.0,0.00019716,15]
[328913432,1717979703298,150.5,0.00019716,15]
[328913433,1717979703843,150.5,0.00019716,15]
[328913434,1717979703881,216.67,0.00019706,15]
[328913435,1717979703924,345.0,0.00019706,15]
[328913436,1717979704223,150.5,0.00019706,15]
[328913437,1717979704388,345.0,0.00019696,15]
[328913438,1717979704705,150.5,0.00019696,15]
[328913439,1717979704959,363.0,0.00019716,15]
[328913440,1717979705456,363.0,0.00019706,15]
[328913441,1717979705944,363.0,0.00019696,15]
[328913443,1717979824102,150.5,0.00019716,15]
[328913444,1717979824638,216.67,0.00019706,15]
[328913445,1717979825345,254.0,0.00019716,15]
[328913446,1717979825831,254.0,0.00019706,15]
[328913447,1717979826302,254.0,0.00019696,15]
[328913448,1717979944837,177.0,0.00019716,15]
[328913449,1717979945357,177.0,0.00019706,15]
[328913450,1717979945881,177.0,0.00019696,15]
[328913451,1717980064831,241.0,0.00019716,15]
[328913452,1717980065322,150.5,0.00019716,15]
[328913453,1717980065459,241.0,0.00019706,15]
[328913454,1717980065753,150.5,0.00019706,15]
[328913455,1717980065814,241.0,0.00019696,15]
[328913456,1717980066222,150.5,0.00019696,15]
[328913457,1717980184841,150.5,0.00019716,15]
[328913458,1717980185384,150.5,0.00019706,15]
[328913459,1717980185887,150.5,0.00019696,15]
[328913460,1717980304690,150.5,0.00019716,15]
[328913461,1717980304988,150.5,0.00019716,15]
[328913462,1717980305269,150.5,0.00019706,15]
[328913463,1717980305473,194.5,0.00019706,15]
[328913464,1717980305863,150.5,0.00019696,15]
[328913465,1717980424746,169.0,0.00019716,15]
[328913466,1717980425278,169.0,0.00019706,15]
[328913467,1717980425770,169.0,0.00019696,15]
[328913468,1717980436156,-300.0,0.00013898,2]
[328913469,1717980436180,-11362.4419,0.00013899,2]
[328913470,1717980436204,-150.0,0.00013973,2]
[328913471,1717980436227,-160.8020285,0.0001399,2]
[328913472,1717980436250,-154.07,0.0001399,2]
[328913473,1717980436278,-154.07,0.0001399,2]
[328913474,1717980436302,-154.07,0.0001399,2]
[328913475,1717980436329,-154.07,0.0001399,2]
[328913476,1717980436352,-701.43132,0.00013998,2]
[328913477,1717980436377,-2613.07948524,0.00013999,2]
[328913478,1717980436404,-4472.6836653,0.00013999,2]
[328913479,1717980441130,-7105.40589127,0.00013999,2]
[328913480,1717980564150,-200.0,0.000134,4]
[328913481,1717980564175,-500.0,0.000135,4]
[328913482,1717980564203,-800.0,0.000136,4]
[328913483,1717980564231,-1100.0,0.000137,5]
[328913484,1717980564259,-1400.0,0.000138,5]
[328913485,1717980564284,-200.0,0.000139,5]
[328913486,1717980564307,-1566.66958027,0.00013999,2]
[328913487,1717980564337,-31829.602866,0.00014,2]
[328913488,1717980567108,-27498.70577182,0.00014,2]
[328913489,1717980571114,-6957.0175,0.00014,2]
[328913490,1717980574119,-15265.15907076,0.00014,2]
[328913491,1717980574305,-25743.01116967,0.00014,2]
[328913495,1717980610778,167.5585525,0.00013998,120]
[328913500,1717980632685,-154.09,0.0001399,2]
[328913501,1717980632694,-393.34728168,0.00013999,2]
[328913502,1717980632706,-153.41377682,0.00013999,2]
[328913503,1717980632715,-1267.77432031,0.00014,2]
[328913504,1717980632727,-558.15546194,0.00014,2]
[328913505,1717980632739,-1266.60175907,0.00014,2]
[328913506,1717980632750,-11637.98943991,0.00014,2]
[328913507,1717980632761,-4121.07153573,0.00014,2]
[328913508,1717980632772,-10781.89455129,0.00014,2]
[328913509,1717980632784,-1275.75232492,0.00014,2]
[328913510,1717980632795,-15610.13498772,0.00014,2]
[328913511,1717980632807,-5615.33786295,0.00014,2]
[328913512,1717980632982,-2460.75103134,0.00014,2]
[328913513,1717980632994,-903.55095595,0.00014,2]
[328913514,1717980633005,-518.40021227,0.00014,2]
[328913515,1717980633407,-277997.99999997,0.00014,2]
[328913516,1717980633566,-1181.42468244,0.00014,2]
[328913517,1717980633617,-994.53502422,0.00014,2]
[328913544,1717980638682,-1928.236895,0.00014,2]
[328913545,1717980639384,-10425.52,0.00014,2]
[328913551,1717980641539,-259.10734831,0.00014,2]
[328913552,1717980641738,-500.00898235,0.00014,2]
[328913553,1717980642607,-999.99174,0.00014,2]
[328913568,1717980647189,-27467.04110875,0.00014,2]
[328913569,1717980647722,-230707.45405185,0.00014,2]
[328913570,1717980650400,-80188.64659897,0.00014,2]
[328913571,1717980650442,-2083.69770186,0.00014,2]
[328913572,1717980650463,-347536.31652,0.00014,2]
[328913573,1717980668560,162.49317773,0.00013998,10]
[328913574,1717980677247,356.29,0.00027641,120]
[328913575,1717980784845,205.5,0.00019716,15]
[328913576,1717980785151,150.5,0.00019716,15]
[328913577,1717980785759,150.5,0.00019706,15]
[328913578,1717980786273,150.5,0.00019696,15]
[328913579,1717980810661,150.0,0.00028528,120]
[328913580,1717980904928,150.0,0.00012486,2]
[328913581,1717980904954,150.0,0.00012486,2]
[328913582,1717980904977,120.51,0.00012486,2]
[328913583,1717981024314,150.0,0.00011526,2]
[328913584,1717981024345,29.31,0.00011526,2]
[328913585,1717981170933,150.0,0.00029743,120]
[328913586,1717981241646,-3000.0,0.00029863,90]
[328913587,1717981241685,-3000.0,0.00029863,90]
[328913588,1717981451305,150.0,0.00010823,2]
[328913589,1717981451331,150.0,0.00010823,2]
[328913590,1717981451357,99.48,0.00010823,2]
[328913591,1717981555146,-787.31172062,0.00012642,2]
[328913592,1717981656689,300.0,0.0003,120]
[328913593,1717981745153,-3882.8141,0.00012529,2]
[328913594,1717981750104,-1699.72453772,0.00012529,2]
[328913595,1717981750127,-864.46411372,0.0001253,2]
[328913596,1717981750151,-205.63487324,0.0001253,2]
[328913597,1717981750173,-155.0,0.0001253,2]
[328913598,1717981750197,-150.0,0.0001253,2]
[328913599,1717981750220,-300.0,0.0001253,2]
[328913600,1717981750242,-235.10641019,0.00012531,2]
[328913601,1717981750264,-155.0,0.00012531,2]
[328913602,1717981750286,-1539.32916513,0.00012531,2]
[328913603,1717981761092,-362.0836908,0.00012531,2]
[328913604,1717981761114,-334.17412539,0.00012532,2]
[328913605,1717981761136,-2368.60119743,0.00012532,2]
[328913606,1717981761160,-166.62489551,0.00012533,2]
[328913607,1717981761184,-184.75301057,0.0001254,2]
[328913608,1717981761206,-184.75301057,0.00012543,2]
[328913609,1717981762219,3018.65921685,0.00012531,2]
[328913616,1717981831886,-3767.0,0.00012641,2]
[328913617,1717981831897,-499.99,0.00012646,2]
[328913618,1717981831907,-673.200102,0.00012647,2]
[328913619,1717981832299,-3799.349898,0.00012647,2]
[328913620,1717981832308,-339.79,0.00012647,2]
[328913621,1717981832318,-6549.98,0.00012647,2]
[328913622,1717981832329,-190.0,0.00012791,2]
[328913623,1717981832340,-250.0,0.0001281,2]
[328913624,1717981832350,-973.41885708,0.00012813,2]
[328913643,1717981838169,-232.51,0.00012763,2]
[328913644,1717981838179,-5445.41614,0.00012813,2]
[328913645,1717981838192,-17481.16500292,0.00012813,2]
[328913646,1717981838201,-150.0,0.00012818,2]
[328913647,1717981838211,-250.0,0.00012887,2]
[328913648,1717981838221,-158.73746781,0.00013067,2]
[328913649,1717981838230,-399.48,0.00013087,2]
[328913650,1717981838240,-155.0,0.00013167,2]
[328913651,1717981838250,-1000.0,0.00013168,2]
[328913652,1717981838259,-299.99,0.00013168,2]
[328913653,1717981838269,-3960.59396243,0.00013433,2]
[328913654,1717981838279,-3161.83902958,0.00013435,2]
[328913655,1717981838288,-625.70433105,0.00013438,2]
[328913656,1717981838302,-190.0,0.00013458,2]
[328913657,1717981838312,-1450.56,0.00013699,2]
[328913658,1717981838322,-431.12,0.00013699,2]
[328913659,1717981838332,-329.90705038,0.00013705,2]
[328913660,1717981838341,-405.0,0.00013748,2]
[328913661,1717981838351,-150.0,0.00013783,2]
[328913662,1717981838362,-253.20337282,0.00013858,2]
[328913663,1717981838372,-173.25656806,0.000139,2]
[328913664,1717981838382,-318.93601992,0.000139,2]
[328913665,1717981838392,-158.73746781,0.00013943,2]
[328913666,1717981838402,-167.29970158,0.00013943,2]
[328913667,1717981838412,-346.69779116,0.00013943,2]
[328913668,1717981838422,-327.47778573,0.00013943,2]
[328913669,1717981838432,-3861.62006134,0.00013979,2]
[328913670,1717981838443,-152.27,0.00013989,2]
[328913671,1717981838452,-572.18,0.00013989,3]
[328913672,1717981838462,-1827.92438736,0.00013989,2]
[328913673,1717981838691,-8696.47251332,0.00013989,2]
[328913674,1717981838702,-190.71,0.0001399,3]
[328913675,1717981838711,-152.27,0.0001399,2]
[328913676,1717981838722,-152.27,0.0001399,2]
[328913677,1717981838732,-192.06044988,0.00013997,2]
[328913678,1717981838741,-236.20477811,0.00013997,2]
[328913679,1717981838751,-915.06057391,0.00013997,2]
[328913680,1717981838761,-3556.30019619,0.00013997,2]
[328913681,1717981838770,-398.2988159,0.00013997,2]
[328913682,1717981838779,-169.56469087,0.00013997,2]
[328913683,1717981838789,-332.83067502,0.00013997,2]
[328913684,1717981838800,-2020.1219392,0.00013997,2]
[328913685,1717981838809,-3017.97447347,0.00013997,2]
[328913686,1717981838819,-207.15743022,0.00013998,2]
[328913687,1717981838829,-549.42818599,0.00013998,2]
[328913688,1717981838839,-155.15897647,0.00013998,2]
[328913689,1717981838848,-155.34417305,0.00013998,2]
[328913690,1717981838858,-155.54456278,0.00013998,2]
[328913691,1717981838867,-1363.12480313,0.00013998,2]
[328913692,1717981838877,-239.869756,0.00013998,2]
[328913693,1717981838887,-283.9538657,0.00013998,2]
[328913694,1717981838897,-301.58849028,0.00013998,2]
[328913695,1717981838907,-309.58554247,0.00013998,2]
[328913696,1717981838916,-155.0,0.00013998,2]
[328913697,1717981838926,-409.18804055,0.00013998,2]
[328913698,1717981838936,-296.77241989,0.00013998,2]
[328913699,1717981838946,-223.53128263,0.00013998,2]
[328913700,1717981838956,-155.20092881,0.00013998,2]
[328913701,1717981838966,-237.88261551,0.00013998,2]
[328913702,1717981838975,-999.99174,0.00013999,2]
[328913703,1717981838986,-12197.221826,0.00013999,2]
[328913704,1717981839017,-0.04272639,0.00013999,2]
[328913705,1717981839037,-622.83715495,0.00013999,2]
[328913710,1717981842631,-366.38993625,0.00013999,2]
[328913715,1717981843479,-1488.72592968,0.00013999,2]
[328913716,1717981843638,-682.90773565,0.00013999,2]
[328913717,1717981843651,-536.2544351,0.00013999,2]
[328913718,1717981844176,-168188.38991808,0.00013999,2]
[328913719,1717981844188,-91877.55298212,0.00013999,2]
[328913720,1717981844200,-210759.12014247,0.00013999,2]
[328913721,1717981844321,-400.57534126,0.00013999,2]
[328913758,1717981846281,-7246.89854164,0.00013999,2]
[328913760,1717981846293,-1745.03904275,0.00013999,2]
[328913761,1717981846307,-528.80704045,0.00013999,2]
[328913762,1717981846427,-321.85345508,0.00013999,2]
[328913764,1717982747139,-343.2773796,0.00013097,2]
[328913765,1717982835127,-79.4026204,0.00013097,2]
[328913766,1717982835150,-164.30466413,0.00013757,2]
[328913767,1717982835173,-252.8485039,0.00013857,2]
[328913768,1717982835199,-6752.93775625,0.0001386,2]
[328913769,1717982836109,-3411.7329777,0.0001386,2]
[328913770,1717982852131,-549.13198539,0.0001386,2]
[328913771,1717982852157,-2311.0868,0.0001386,2]
[328913772,1717982852181,-8707.6649,0.00013899,2]
[328913773,1717982852206,-5655.65539939,0.00013899,2]
[328913774,1717982902635,-4851.76090061,0.00013899,2]